fUSD/lending_fUSD_20250325
["ID","MTS","AMOUNT","RATE_DAILY","PERIOD"]
[356657264,1742923850583,-500.0,0.00045479,120]
[356657265,1742923850592,-1000.0,0.000455,60]
[356657266,1742923850602,-1400.0,0.00045537,120]
[356657267,1742923850611,-500.0,0.00045616,14]
[356657268,1742923850620,-892.0,0.00045616,14]
[356657269,1742923850629,-1247.0,0.00045616,14]
[356657270,1742923850638,-500.0,0.00045616,14]
[356657271,1742923850647,-500.0,0.00045616,14]
[356657272,1742923850657,-658.76082056,0.00045616,14]
[356657273,1742923850666,-9466.39686365,0.00045678,31]
[356657274,1742923850675,-1909.81821424,0.000457,90]
[356657275,1742923850684,-999.92,0.00045753,14]
[356657276,1742923850693,-892.0,0.00045753,14]
[356657277,1742923850703,-1247.0,0.00045753,14]
[356657278,1742923850712,-500.0,0.00045753,14]
[356657279,1742923850720,-638.26633823,0.00045753,14]
[356657280,1742923850729,-500.0,0.00045753,120]
[356657281,1742923850738,-500.0,0.00045811,120]
[356657282,1742923850747,-263.0,0.0004582,30]
[356657283,1742923850756,-1786.0,0.0004588,2]
[356657284,1742923850765,-5100.0,0.0004588,14]
[356657285,1742923850774,-5100.0,0.0004588,15]
[356657286,1742923850783,-5100.0,0.0004588,16]
[356657287,1742923850792,-5150.0,0.0004588,13]
[356657288,1742923850801,-614.763,0.0004588,23]
[356657289,1742923850810,-5150.0,0.0004588,33]
[356657290,1742923850819,-892.0,0.0004589,14]
[356657291,1742923850828,-1247.0,0.0004589,14]
[356657292,1742923850838,-590.86224722,0.0004589,14]
[356657293,1742923850847,-208.29499707,0.000459,120]
[356657294,1742923850856,-258.22645123,0.000459,120]
[356657295,1742923850865,-1651.536595,0.000459,85]
[356657296,1742923850874,-163.92607656,0.000459,28]
[356657297,1742923850883,-283.94126885,0.000459,9]
[356657298,1742923850892,-29384.88444251,0.000459,2]
[356657299,1742923850901,-150.0,0.00045927,2]
[356657300,1742923850910,-1000.0,0.00045928,2]
[356657301,1742923850919,-13599.46935409,0.00045968,2]
[356657302,1742923850928,-3934.01,0.00045999,2]
[356657303,1742923850937,-50000.0,0.00046,46]
[356657304,1742923850947,-278.38,0.00046,120]
[356657305,1742923850956,-3671.63425116,0.00046,4]
[356657306,1742923850965,-197.15,0.00046,120]
[356657307,1742923850975,-1506.08992193,0.00046,120]
[356657308,1742923850984,-848.0,0.00046,120]
[356657309,1742923850994,-23508.04400277,0.00046,2]
[356657310,1742923851003,-37193.5,0.00046,120]
[356657311,1742923851013,-2131.66,0.00046,120]
[356657312,1742923851023,-439802.1824385,0.00046,120]
[356657313,1742923851032,-483.07801032,0.00046,120]
[356657314,1742923851042,-1005.16,0.00046,86]
[356657315,1742923851052,-892.0,0.00046027,14]
[356657316,1742923851061,-1247.0,0.00046027,14]
[356657317,1742923851071,-500.0,0.00046027,120]
[356657318,1742923851080,-153.0,0.00046027,120]
[356657319,1742923851090,-153.0,0.00046027,120]
[356657320,1742923851102,-153.0,0.00046027,120]
[356657321,1742923851111,-153.0,0.00046027,120]
[356657322,1742923851189,-153.0,0.00046027,120]
[356657323,1742923851199,-153.0,0.00046027,120]
[356657324,1742923851209,-153.0,0.00046027,120]
[356657325,1742923851218,-153.0,0.00046027,120]
[356657326,1742923851228,-153.0,0.00046027,120]
[356657327,1742923851236,-153.0,0.00046027,120]
[356657328,1742923851246,-153.0,0.00046027,120]
[356657329,1742923851255,-153.0,0.00046027,120]
[356657330,1742923851266,-153.0,0.00046027,120]
[356657331,1742923851275,-153.0,0.00046027,120]
[356657332,1742923851285,-153.0,0.00046027,120]
[356657333,1742923851295,-153.0,0.00046027,120]
[356657334,1742923851304,-153.0,0.00046027,120]
[356657335,1742923851313,-153.0,0.00046027,120]
[356657336,1742923851322,-153.0,0.00046027,120]
[356657337,1742923851331,-153.0,0.00046027,120]
[356657338,1742923851341,-153.0,0.00046027,120]
[356657339,1742923851350,-153.0,0.00046027,120]
[356657340,1742923851360,-153.0,0.00046027,120]
[356657341,1742923851370,-153.0,0.00046027,120]
[356657342,1742923851379,-153.0,0.00046027,120]
[356657343,1742923851389,-153.0,0.00046027,120]
[356657344,1742923851398,-153.0,0.00046027,120]
[356657345,1742923851408,-153.0,0.00046027,120]
[356657346,1742923851417,-153.0,0.00046027,120]
[356657347,1742923851426,-153.0,0.00046027,120]
[356657348,1742923851435,-153.0,0.00046027,120]
[356657349,1742923851444,-153.0,0.00046027,120]
[356657350,1742923851454,-153.0,0.00046027,120]
[356657351,1742923851464,-153.0,0.00046027,120]
[356657352,1742923851473,-153.0,0.00046027,120]
[356657353,1742923851482,-153.0,0.00046027,120]
[356657354,1742923851491,-153.0,0.00046027,120]
[356657355,1742923851501,-153.0,0.00046027,120]
[356657356,1742923851510,-153.0,0.00046027,120]
[356657357,1742923851519,-153.0,0.00046027,120]
[356657358,1742923851528,-153.0,0.00046027,120]
[356657359,1742923851538,-153.0,0.00046027,120]
[356657360,1742923851547,-153.0,0.00046027,120]
[356657361,1742923851556,-153.0,0.00046027,120]
[356657362,1742923851565,-153.0,0.00046027,120]
[356657363,1742923851574,-1400.0,0.00046085,120]
[356657364,1742923851584,-1916.62189704,0.00046112,15]
[356657365,1742923851593,-200.0,0.00046134,120]
[356657366,1742923851602,-892.0,0.00046164,14]
[356657367,1742923851612,-1247.0,0.00046164,14]
[356657368,1742923851621,-2003.0818,0.00046243,3]
[356657369,1742923851631,-1205.88107166,0.000463,120]
[356657370,1742923851641,-892.0,0.00046301,14]
[356657371,1742923851650,-1247.0,0.00046301,14]
[356657372,1742923851660,-2500.0,0.00046301,120]
[356657373,1742923851670,-500.0,0.00046301,120]
[356657374,1742923851679,-2084.9515114,0.00046347,55]
[356657375,1742923851689,-500.0,0.00046359,120]
[356657376,1742923851698,-73640.30179423,0.0004638,2]
[356657377,1742923851707,-260.44587888,0.00046387,2]
[356657378,1742923851716,-5695.06969298,0.00046411,19]
[356657379,1742923851725,-5000.0,0.00046411,20]
[356657380,1742923851734,-5000.0,0.00046411,20]
[356657381,1742923851743,-5000.0,0.00046411,17]
[356657382,1742923851753,-5000.0,0.00046411,23]
[356657383,1742923851762,-150.0,0.0004642,120]
[356657384,1742923851772,-252.6,0.00046432,120]
[356657385,1742923851781,-892.0,0.00046438,14]
[356657386,1742923851791,-1247.0,0.00046438,14]
[356657387,1742923851800,-2200.0,0.00046475,120]
[356657388,1742923851809,-469.17112668,0.00046475,2]
[356657389,1742923851818,-607.55416244,0.00046476,24]
[356657390,1742923851827,-1304.41763187,0.00046574,60]
[356657391,1742923851837,-892.0,0.00046575,14]
[356657392,1742923851847,-1247.0,0.00046575,14]
[356657393,1742923851856,-500.43314713,0.00046575,120]
[356657394,1742923851866,-308.13156535,0.00046575,120]
[356657395,1742923851875,-501.49623479,0.00046575,120]
[356657396,1742923851884,-501.10394272,0.00046575,120]
[356657397,1742923851893,-504.48706099,0.00046575,120]
[356657398,1742923851902,-506.09043199,0.00046575,120]
[356657399,1742923851912,-500.0,0.00046575,120]
[356657400,1742923851921,-512.14123785,0.00046575,120]
[356657401,1742923851931,-515.39512497,0.00046575,120]
[356657402,1742923851940,-524.13290549,0.00046575,120]
[356657403,1742923851950,-502.4932276,0.00046575,120]
[356657404,1742923851959,-572.31630689,0.00046575,120]
[356657405,1742923851969,-532.09505266,0.00046575,120]
[356657406,1742923851978,-402.9605294,0.00046575,120]
[356657407,1742923851988,-500.0,0.00046575,120]
[356657408,1742923851998,-503.20545026,0.00046575,120]
[356657409,1742923852007,-510.84012182,0.00046575,120]
[356657410,1742923852017,-512.10587667,0.00046575,120]
[356657411,1742923852026,-511.85028198,0.00046575,120]
[356657412,1742923852036,-512.71004925,0.00046575,120]
[356657413,1742923852045,-514.90046021,0.00046575,120]
[356657414,1742923852055,-513.86337016,0.00046575,120]
[356657415,1742923852064,-502.25131677,0.00046575,120]
[356657416,1742923852074,-512.73197388,0.00046575,120]
[356657417,1742923852083,-522.89146298,0.00046575,120]
[356657418,1742923852093,-536.9822817,0.00046575,120]
[356657419,1742923852104,-509.31737571,0.00046575,120]
[356657420,1742923852116,-529.22793687,0.00046575,120]
[356657421,1742923852126,-500.0,0.00046575,120]
[356657422,1742923852135,-512.3703615,0.00046575,120]
[356657423,1742923852143,-511.82197185,0.00046575,120]
[356657424,1742923852153,-500.0,0.00046575,120]
[356657425,1742923852162,-500.0,0.00046575,120]
[356657426,1742923852171,-500.0,0.00046575,120]
[356657427,1742923852180,-515.64959458,0.00046575,120]
[356657428,1742923852189,-516.73113151,0.00046575,120]
[356657429,1742923852199,-500.0,0.00046575,120]
[356657430,1742923852208,-517.29902167,0.00046575,120]
[356657431,1742923852217,-517.33352311,0.00046575,120]
[356657432,1742923852226,-509.04545948,0.00046575,120]
[356657433,1742923852235,-504.8600007,0.00046575,120]
[356657434,1742923852245,-516.38385677,0.00046575,120]
[356657435,1742923852254,-534.49602846,0.00046575,120]
[356657436,1742923852333,-522.96359372,0.00046575,120]
[356657437,1742923852344,-523.03324214,0.00046575,120]
[356657438,1742923852354,-526.72863318,0.00046575,120]
[356657439,1742923852363,-538.97532685,0.00046575,120]
[356657440,1742923852372,-505.96547483,0.00046575,120]
[356657441,1742923852381,-517.06191332,0.00046575,120]
[356657442,1742923852391,-513.05596562,0.00046575,120]
[356657443,1742923852401,-555.16999454,0.00046575,120]
[356657444,1742923852411,-515.51038117,0.00046575,120]
[356657445,1742923852420,-505.04018887,0.00046575,120]
[356657446,1742923852430,-530.00967945,0.00046575,120]
[356657447,1742923852439,-514.95357781,0.00046575,120]
[356657448,1742923852448,-508.71294126,0.00046575,120]
[356657449,1742923852458,-511.86346748,0.00046575,120]
[356657450,1742923852468,-533.0122353,0.00046575,120]
[356657451,1742923852478,-180.30899959,0.00046575,120]
[356657452,1742923852487,-529.66487897,0.00046575,120]
[356657453,1742923852497,-507.38334548,0.00046575,120]
[356657454,1742923852507,-512.18483963,0.00046575,120]
[356657455,1742923852517,-505.98846457,0.00046575,120]
[356657456,1742923852526,-531.08109462,0.00046575,120]
[356657457,1742923852535,-500.46830867,0.00046575,120]
[356657458,1742923852544,-505.94519061,0.00046575,120]
[356657459,1742923852554,-572.11498445,0.00046575,120]
[356657460,1742923852563,-509.34021816,0.00046575,120]
[356657461,1742923852571,-536.47752816,0.00046575,120]
[356657462,1742923852580,-519.20554372,0.00046575,120]
[356657463,1742923852589,-502.79769106,0.00046575,120]
[356657464,1742923852598,-504.98952704,0.00046575,120]
[356657465,1742923852607,-514.54352795,0.00046575,120]
[356657466,1742923852617,-511.30723376,0.00046575,120]
[356657467,1742923852626,-507.28859295,0.00046575,120]
[356657468,1742923852635,-526.2442139,0.00046575,120]
[356657469,1742923852644,-535.6430625,0.00046575,120]
[356657470,1742923852653,-219.35541595,0.00046575,120]
[356657471,1742923852662,-519.14798495,0.00046575,120]
[356657472,1742923852671,-518.33306607,0.00046575,120]
[356657473,1742923852680,-503.84877661,0.00046575,120]
[356657474,1742923852690,-515.23823395,0.00046575,120]
[356657475,1742923852699,-511.30007176,0.00046575,120]
[356657476,1742923852709,-591.87777942,0.00046575,120]
[356657477,1742923852718,-515.55598292,0.00046575,120]
[356657478,1742923852727,-528.69823088,0.00046575,120]
[356657479,1742923852736,-166.39054207,0.00046575,120]
[356657480,1742923852745,-511.43715208,0.00046575,120]
[356657481,1742923852755,-520.70276492,0.00046575,120]
[356657482,1742923852764,-505.32416824,0.00046575,120]
[356657483,1742923852773,-500.8382376,0.00046575,120]
[356657484,1742923852782,-513.43221547,0.00046575,120]
[356657485,1742923852791,-512.33688458,0.00046575,120]
[356657486,1742923852801,-523.55530695,0.00046575,120]
[356657487,1742923852810,-514.92676288,0.00046575,120]
[356657488,1742923852819,-508.76892766,0.00046575,120]
[356657489,1742923852833,-500.0,0.00046575,120]
[356657490,1742923852851,-514.71557086,0.00046575,120]
[356657491,1742923852870,-513.9214046,0.00046575,120]
[356657492,1742923852888,-506.81509995,0.00046575,120]
[356657493,1742923852906,-506.49092644,0.00046575,120]
[356657494,1742923852923,-502.17949324,0.00046575,120]
[356657495,1742923852941,-511.47031578,0.00046575,120]
[356657496,1742923852959,-517.80329945,0.00046575,120]
[356657497,1742923852975,-513.31,0.00046575,120]
[356657498,1742923852994,-513.84352828,0.00046575,120]
[356657499,1742923853011,-500.0,0.00046575,120]
[356657500,1742923853030,-505.23170055,0.00046575,120]
[356657501,1742923853046,-504.47237616,0.00046575,120]
[356657502,1742923853059,-512.58035307,0.00046575,120]
[356657503,1742923853078,-505.13940538,0.00046575,120]
[356657504,1742923853090,-515.28158889,0.00046575,120]
[356657505,1742923853107,-512.05507384,0.00046575,120]
[356657506,1742923853123,-500.0,0.00046575,120]
[356657507,1742923853137,-512.53362411,0.00046575,120]
[356657508,1742923853153,-536.50798757,0.00046575,120]
[356657509,1742923853166,-525.0054375,0.00046575,120]
[356657510,1742923853179,-517.54416352,0.00046575,120]
[356657511,1742923853195,-501.46914084,0.00046575,120]
[356657512,1742923853210,-510.15026474,0.00046575,120]
[356657513,1742923853224,-500.0,0.00046575,120]
[356657514,1742923853239,-512.30586826,0.00046575,120]
[356657515,1742923853252,-500.0,0.00046575,120]
[356657516,1742923853267,-511.8906178,0.00046575,120]
[356657517,1742923853281,-540.79467202,0.00046575,120]
[356657518,1742923853296,-511.58331502,0.00046575,120]
[356657519,1742923853311,-513.8168585,0.00046575,120]
[356657520,1742923853326,-514.13369784,0.00046575,120]
[356657521,1742923853339,-514.24667918,0.00046575,120]
[356657522,1742923853353,-535.24874359,0.00046575,120]
[356657523,1742923853368,-500.0,0.00046575,120]
[356657524,1742923853382,-500.0,0.00046575,120]
[356657525,1742923853396,-521.45370058,0.00046575,120]
[356657526,1742923853410,-502.15005094,0.00046575,120]
[356657527,1742923853423,-524.28200161,0.00046575,120]
[356657528,1742923853437,-525.32567781,0.00046575,120]
[356657529,1742923853451,-681.27,0.00046575,120]
[356657530,1742923853464,-524.53975043,0.00046575,120]
[356657531,1742923853478,-513.16696572,0.00046575,120]
[356657532,1742923853492,-500.0,0.00046575,120]
[356657533,1742923853507,-522.58409471,0.00046575,120]
[356657534,1742923853521,-500.0,0.00046575,120]
[356657535,1742923853535,-522.20353695,0.00046575,120]
[356657536,1742923853549,-514.74104422,0.00046575,120]
[356657537,1742923853559,-505.93622384,0.00046575,120]
[356657538,1742923853568,-504.24175995,0.00046575,120]
[356657539,1742923853578,-200.0,0.00046575,120]
[356657540,1742923853587,-500.0,0.00046575,120]
[356657541,1742923853724,-511.56237448,0.00046575,120]
[356657542,1742923853744,-500.0,0.00046575,120]
[356657543,1742923853754,-540.77500086,0.00046575,120]
[356657544,1742923853762,-511.66757275,0.00046575,120]
[356657545,1742923853772,-500.0,0.00046575,120]
[356657546,1742923853781,-500.0,0.00046575,120]
[356657547,1742923853790,-504.88679621,0.00046575,120]
[356657548,1742923853799,-500.0,0.00046575,120]
[356657549,1742923853809,-522.75164137,0.00046575,120]
[356657550,1742923853818,-506.58949088,0.00046575,120]
[356657551,1742923853827,-500.0,0.00046575,120]
[356657552,1742923853836,-513.1840693,0.00046575,120]
[356657553,1742923853845,-508.38550303,0.00046575,120]
[356657554,1742923853854,-503.58466193,0.00046575,120]
[356657555,1742923853864,-2013.49718224,0.00046575,30]
[356657556,1742923853873,-508.8495477,0.00046575,120]
[356657557,1742923853882,-538.49365344,0.00046575,120]
[356657558,1742923853891,-500.0,0.00046575,120]
[356657559,1742923853901,-500.0,0.00046575,120]
[356657560,1742923853910,-513.39644197,0.00046575,120]
[356657561,1742923853919,-503.86113578,0.00046575,120]
[356657562,1742923853929,-506.1584941,0.00046575,120]
[356657563,1742923853938,-500.0,0.00046575,120]
[356657564,1742923853948,-500.0,0.00046575,120]
[356657565,1742923853955,-514.21556571,0.00046575,120]
[356657566,1742923853964,-169.05795007,0.00046575,120]
[356657567,1742923853974,-508.715831,0.00046575,120]
[356657568,1742923853983,-500.0,0.00046575,120]
[356657569,1742923853993,-518.39647304,0.00046575,120]
[356657570,1742923854002,-500.0,0.00046575,120]
[356657571,1742923854011,-1000.0,0.00046575,120]
[356657572,1742923854021,-511.21154222,0.00046575,120]
[356657573,1742923854031,-593.53,0.00046575,120]
[356657574,1742923854040,-500.0,0.00046575,120]
[356657575,1742923854049,-504.98485683,0.00046575,120]
[356657576,1742923854059,-500.6501901,0.00046575,120]
[356657577,1742923854069,-486.21557822,0.00046575,120]
[356657578,1742923854078,-500.0,0.00046575,120]
[356657579,1742923854087,-505.57517222,0.00046575,120]
[356657580,1742923854098,-511.25208826,0.00046575,120]
[356657581,1742923854109,-512.13251113,0.00046575,120]
[356657582,1742923854119,-534.01678919,0.00046575,120]
[356657583,1742923854128,-500.0,0.00046575,120]
[356657584,1742923854138,-505.71404496,0.00046575,120]
[356657585,1742923854147,-514.09644008,0.00046575,120]
[356657586,1742923854157,-514.07701356,0.00046575,120]
[356657587,1742923854166,-509.03441836,0.00046575,120]
[356657588,1742923854176,-510.55398865,0.00046575,120]
[356657589,1742923854186,-500.0,0.00046575,120]
[356657590,1742923854196,-501.77689062,0.00046575,120]
[356657591,1742923854205,-517.62773795,0.00046575,120]
[356657592,1742923854215,-500.0,0.00046575,120]
[356657593,1742923854224,-502.99847152,0.00046575,120]
[356657594,1742923854234,-512.66716305,0.00046575,120]
[356657595,1742923854243,-500.0,0.00046575,120]
[356657596,1742923854253,-531.52329765,0.00046575,120]
[356657597,1742923854263,-510.84661072,0.00046575,120]
[356657598,1742923854273,-500.0,0.00046575,120]
[356657599,1742923854283,-504.52567672,0.00046575,60]
[356657600,1742923854292,-541.30993051,0.00046575,120]
[356657601,1742923854302,-501.7703308,0.00046575,120]
[356657602,1742923854312,-507.03938682,0.00046575,120]
[356657603,1742923854320,-509.01392697,0.00046575,120]
[356657604,1742923854330,-500.0,0.00046575,120]
[356657605,1742923854339,-525.40283383,0.00046575,120]
[356657606,1742923854348,-500.0,0.00046575,120]
[356657607,1742923854358,-500.71501207,0.00046575,120]
[356657608,1742923854368,-501.27191594,0.00046575,120]
[356657609,1742923854379,-507.38124341,0.00046575,120]
[356657610,1742923854388,-500.0,0.00046575,120]
[356657611,1742923854399,-500.0,0.00046575,120]
[356657612,1742923854409,-500.0,0.00046575,120]
[356657613,1742923854419,-500.0,0.00046575,120]
[356657614,1742923854428,-509.48600886,0.00046575,120]
[356657615,1742923854438,-501.79826098,0.00046575,120]
[356657616,1742923854448,-522.96047353,0.00046575,120]
[356657617,1742923854458,-500.0,0.00046575,120]
[356657618,1742923854468,-500.0,0.00046575,120]
[356657619,1742923854478,-502.88328592,0.00046575,120]
[356657620,1742923854489,-515.74759908,0.00046575,120]
[356657621,1742923854498,-500.0,0.00046575,120]
[356657622,1742923854510,-510.90286662,0.00046575,120]
[356657623,1742923854519,-500.0,0.00046575,120]
[356657624,1742923854528,-505.54433102,0.00046575,120]
[356657625,1742923854538,-500.17594038,0.00046575,120]
[356657626,1742923854547,-529.79500612,0.00046575,120]
[356657627,1742923854556,-500.0,0.00046575,120]
[356657628,1742923854565,-500.5557901,0.00046575,120]
[356657629,1742923854573,-500.0,0.00046575,120]
[356657630,1742923854582,-500.0,0.00046575,120]
[356657631,1742923854590,-510.54196676,0.00046575,120]
[356657632,1742923854599,-500.0,0.00046575,120]
[356657633,1742923854608,-500.0,0.00046575,120]
[356657634,1742923854617,-502.52882431,0.00046575,120]
[356657635,1742923854625,-500.0,0.00046575,120]
[356657636,1742923854634,-500.0,0.00046575,120]
[356657637,1742923854642,-511.93545051,0.00046575,120]
[356657638,1742923854650,-501.32713322,0.00046575,120]
[356657639,1742923854658,-500.0,0.00046575,120]
[356657640,1742923854668,-500.0,0.00046575,120]
[356657641,1742923854677,-507.59654983,0.00046575,120]
[356657642,1742923854686,-500.0,0.00046575,120]
[356657643,1742923854696,-440.73380054,0.00046575,120]
[356657644,1742923854705,-500.0,0.00046575,120]
[356657645,1742923854715,-500.0,0.00046575,120]
[356657646,1742923854725,-502.28143837,0.00046575,120]
[356657647,1742923854735,-510.47079711,0.00046575,120]
[356657648,1742923854744,-500.0,0.00046575,120]
[356657649,1742923854753,-500.0,0.00046575,20]
[356657650,1742923854762,-500.0,0.00046575,120]
[356657651,1742923854772,-509.83116525,0.00046575,120]
[356657652,1742923854781,-500.0,0.00046575,120]
[356657653,1742923854791,-500.0,0.00046575,120]
[356657654,1742923854800,-500.0,0.00046575,120]
[356657655,1742923854810,-500.0,0.00046575,120]
[356657656,1742923854819,-500.0,0.00046575,120]
[356657657,1742923854829,-500.0,0.00046575,120]
[356657658,1742923854839,-500.0,0.00046575,120]
[356657659,1742923854849,-519.2247043,0.00046575,120]
[356657660,1742923854858,-500.0,0.00046575,120]
[356657661,1742923854869,-500.0,0.00046575,120]
[356657662,1742923854879,-500.0,0.00046575,120]
[356657663,1742923854890,-500.0,0.00046575,120]
[356657664,1742923854900,-500.0,0.00046575,120]
[356657665,1742923854910,-500.0006144,0.00046575,120]
[356657666,1742923854920,-503.81373263,0.00046575,120]
[356657667,1742923854931,-500.0,0.00046575,120]
[356657668,1742923854941,-503.07258666,0.00046575,120]
[356657669,1742923854951,-500.0,0.00046575,120]
[356657670,1742923854961,-500.0,0.00046575,120]
[356657671,1742923854971,-500.0,0.00046575,120]
[356657672,1742923854981,-505.56407302,0.00046575,120]
[356657673,1742923854990,-500.0,0.00046575,120]
[356657674,1742923855000,-500.0,0.00046575,120]
[356657675,1742923855010,-522.63324733,0.00046575,120]
[356657676,1742923855020,-500.0,0.00046575,120]
[356657677,1742923855029,-189.089846,0.00046575,120]
[356657678,1742923855039,-1500.0,0.00046575,120]
[356657679,1742923855048,-500.0,0.00046575,120]
[356657680,1742923855058,-500.0,0.00046575,120]
[356657681,1742923855067,-500.0,0.00046575,120]
[356657682,1742923855077,-500.0,0.00046575,120]
[356657683,1742923855087,-500.0,0.00046575,120]
[356657684,1742923855097,-500.0,0.00046575,120]
[356657685,1742923855109,-500.0,0.00046575,120]
[356657686,1742923855120,-500.0,0.00046575,120]
[356657687,1742923855130,-251.97070224,0.00046575,120]
[356657688,1742923855139,-500.0,0.00046575,120]
[356657689,1742923855150,-500.0,0.00046575,120]
[356657690,1742923855159,-500.0,0.00046575,120]
[356657691,1742923855168,-512.27055436,0.00046575,120]
[356657692,1742923855178,-500.0,0.00046575,120]
[356657693,1742923855188,-440.8018686,0.00046575,120]
[356657694,1742923855197,-518.06446097,0.00046575,120]
[356657695,1742923855206,-509.29364797,0.00046575,120]
[356657696,1742923855215,-509.48591997,0.00046575,120]
[356657697,1742923855225,-500.0,0.00046575,120]
[356657698,1742923855234,-500.0,0.00046575,120]
[356657699,1742923855244,-520.61322586,0.00046575,120]
[356657700,1742923855253,-500.0,0.00046575,120]
[356657701,1742923855263,-500.0,0.00046575,120]
[356657702,1742923855273,-500.0,0.00046575,120]
[356657703,1742923855282,-500.0,0.00046575,120]
[356657704,1742923855291,-532.68510195,0.00046575,120]
[356657705,1742923855301,-508.29362621,0.00046575,120]
[356657706,1742923855311,-509.87271839,0.00046575,120]
[356657707,1742923855320,-510.82356794,0.00046575,120]
[356657708,1742923855329,-511.03474359,0.00046575,120]
[356657709,1742923855339,-513.88353732,0.00046575,120]
[356657710,1742923855350,-502.04890728,0.00046575,120]
[356657711,1742923855359,-503.15623069,0.00046575,120]
[356657712,1742923855370,-500.0,0.00046575,120]
[356657713,1742923855379,-388.70970637,0.00046575,120]
[356657714,1742923855389,-500.0,0.00046575,120]
[356657715,1742923855398,-500.0,0.00046575,120]
[356657716,1742923855408,-500.0,0.00046575,120]
[356657717,1742923855417,-500.0,0.00046575,120]
[356657718,1742923855427,-500.0,0.00046575,120]
[356657719,1742923855436,-520.3460214,0.00046575,120]
[356657720,1742923855446,-509.66490635,0.00046575,120]
[356657721,1742923855456,-507.51852037,0.00046575,120]
[356657722,1742923855466,-506.97040577,0.00046575,120]
[356657723,1742923855476,-501.59189759,0.00046575,120]
[356657724,1742923855487,-509.68613002,0.00046575,120]
[356657725,1742923855496,-511.6655456,0.00046575,120]
[356657726,1742923855506,-530.49853832,0.00046575,120]
[356657727,1742923855516,-528.70634899,0.00046575,120]
[356657728,1742923855526,-511.74833376,0.00046575,120]
[356657729,1742923855535,-515.78119803,0.00046575,120]
[356657730,1742923855634,-513.60085523,0.00046575,120]
[356657731,1742923855646,-507.81121705,0.00046575,120]
[356657732,1742923855656,-522.4327017,0.00046575,120]
[356657733,1742923855665,-500.0,0.00046575,120]
[356657734,1742923855675,-500.0,0.00046575,120]
[356657735,1742923855684,-507.14963185,0.00046575,120]
[356657736,1742923855695,-511.89075641,0.00046575,120]
[356657737,1742923855704,-503.30941344,0.00046575,120]
[356657738,1742923855715,-513.00266287,0.00046575,120]
[356657739,1742923855724,-504.62398455,0.00046575,120]
[356657740,1742923855735,-500.0,0.00046575,120]
[356657741,1742923855744,-513.76438078,0.00046575,120]
[356657742,1742923855754,-512.20992498,0.00046575,120]
[356657743,1742923855764,-540.96367407,0.00046575,120]
[356657744,1742923855773,-510.39336273,0.00046575,120]
[356657745,1742923855783,-594.68806306,0.00046575,120]
[356657746,1742923855792,-500.0,0.00046575,120]
[356657747,1742923855802,-500.0,0.00046575,120]
[356657748,1742923855811,-514.11150932,0.00046575,120]
[356657749,1742923855821,-507.08989129,0.00046575,120]
[356657750,1742923855830,-500.0,0.00046575,120]
[356657751,1742923855839,-578.38770988,0.00046575,120]
[356657752,1742923855849,-506.60541143,0.00046575,120]
[356657753,1742923855858,-503.08860871,0.00046575,120]
[356657754,1742923855868,-500.0,0.00046575,120]
[356657755,1742923855879,-594.86140485,0.00046575,120]
[356657756,1742923855888,-509.97104588,0.00046575,120]
[356657757,1742923855898,-509.8881038,0.00046575,120]
[356657758,1742923855907,-520.20478412,0.00046575,120]
[356657759,1742923855916,-500.0,0.00046575,120]
[356657760,1742923855926,-509.10122285,0.00046575,120]
[356657761,1742923855935,-506.3337815,0.00046575,120]
[356657762,1742923855945,-3387.1,0.00046575,120]
[356657763,1742923855954,-516.1235189,0.00046575,120]